{"text_format":"3","workbook":"xlsx","n_sheets":5,"sheets":["Instructions","Data Project Template","Chart Generator","Data","School.District.Year"],"not_rendered":{"charts":23,"images":21,"macros":1,"external_links":1,"defined_names":11},"read":"whole","date_system":"1900"}

{"sheet":"Instructions","index":0,"n_rows":20,"n_cols":22,"rows_kept":20,"merged":[[9,15,10,23],[11,15,12,17],[11,18,12,20],[11,21,12,23],[13,15,15,17],[13,18,15,20],[13,21,15,23],[16,15,18,17],[16,18,18,20],[16,21,18,23],[19,15,21,17],[19,18,21,20],[19,21,21,23],[389,1,390,13]]}
{"$rows_empty":9}
[{"$nulls":15},"Excel Formatting Tips and Shortcuts"]
[{"$nulls":4},"\n"]
[{"$nulls":15},"Tip/Shortcut",null,null,"Mac",null,null,"PC"]
[]
[{"$nulls":15},"Copy and Paste",null,null,"Copy: 'command' + 'c'\nPaste: 'command' + 'v'",null,null,"Copy: 'ctrl' + 'c'\nPaste: 'ctrl' + 'v'"]
[]
[]
[{"$nulls":15},"Return/Add a Line Break in Text Box",null,null," 'option' + 'return'",null,null," 'alt' + 'enter'"]
[]
[]
[{"$nulls":15},"Undo",null,null," 'command' + 'z'",null,null," 'ctrl' + 'z'"]

{"sheet":"Data Project Template","index":1,"n_rows":81,"n_cols":16,"rows_kept":81,"merged":[[0,1,0,15],[1,1,1,15],[3,2,3,3],[3,5,3,6],[3,9,3,15],[4,2,4,3],[4,5,7,6],[4,9,4,15],[5,14,7,15],[6,2,6,3],[7,2,7,3],[9,2,9,3],[10,2,10,3],[12,1,12,6],[12,9,12,15],[13,1,20,6],[13,12,13,14],[13,18,14,22],[14,9,15,9],[14,10,15,10],[14,11,15,11],[14,12,15,14],[14,15,15,15],[15,18,22,22],[16,9,17,9],[16,10,17,10],[16,11,17,11],[16,12,17,14],[16,15,17,15],[18,9,18,15],[19,9,20,15],[22,1,22,6],[22,9,22,15],[23,1,26,6],[23,9,27,15],[23,18,24,20],[25,18,28,20],[27,3,27,5],[29,1,30,15],[31,1,32,1],[31,2,32,15],[33,1,34,1],[33,2,34,15],[35,1,36,1],[35,2,36,15],[37,1,38,1],[37,2,38,15],[39,1,40,1],[39,2,40,15],[41,1,42,1],[41,2,42,15],[43,1,44,1],[43,2,44,15],[45,1,46,1],[45,2,46,15],[47,11,47,15],[48,1,48,10],[48,11,48,14],[49,1,49,10],[49,11,49,14],[50,11,50,14],[51,11,51,14],[53,1,53,6],[53,9,54,15],[54,2,54,3],[54,4,54,6],[55,1,63,1],[55,2,63,3],[55,4,63,6],[55,9,75,15],[66,1,67,6],[68,1,68,6],[69,1,75,6],[78,1,79,6],[78,9,79,15],[80,1,87,6],[80,9,87,15]]}
[null,"Accountability and Data Project"]
[null,"School Counseling Programs - Access, Attainment, Achievement"]
[]
[null,null,"District Name",null,null,"Area of Focus",{"$nulls":3},"This project provides targeted supports to students…"]
[null,null,"Granite District"]
[]
[null,null,"School Name"]
[null,null,"Hunter Jr High"]
[]
[null,null,"School Year"]
[null,null,"2021-22"]
[]
[null,"Baseline Data",{"$nulls":7},"Goal Statement"]
[null,"30% of students will increase their reading band level by one step by the end of the school year, according to their grade level.",{"$nulls":7},"Direction","Group","Data Elements","Expected Outcome",null,null,"Date of Outcome"]
[{"$nulls":9},"Example: Increase","9th grade male emergent bilingual students","credit completion rates by",{"v":0.1,"d":"10%"},null,null,"by the end of the 4th term"]
[]
[{"$nulls":9},"Increase","All Studnets","HMH score by 12 - 15 points or more.",{"v":0.3,"d":"30%"},null,null,"by the end of the 4th term"]
[]
[{"$nulls":9},"Goal Explanation (Optional)"]
[]
[]
[]
[null,"How does this project support the School Improvement Plan?",{"$nulls":7},"How will achieving this goal lead to significant and meaningful outcomes for students?"]
[null,"This is in alignment with out school improvement plan. Our school wide goal is to improve student literacy and reading.",{"$nulls":7},"Increasing student literacy rates will improve student academic, career, and life outcomes and goals. Additionally, our encouragement, rewards, and school wide iniative help to foster a positive and connected school environment."]
[]
[]
[]
[null,"This project is: ",null,"*Number of previous years on project: ",null,null,3]
[]
[null,"Systemic Interventions "]
[]
[null,"Individual Level","Counselors will utilizing reading data to help place students in appropriate classes to give support and academic growth."]
[]
[null,"Student Group Level"]
[]
[null,"Classroom Level","Collaborated with teachers and assisted with HMH Growth Testing. Since HMH is a new testing program, we were also involved in trainings."]
[]
[null,"Grade Level"]
[]
[null,"School Level","School wide recognition and rewards (Sweatshirts, masks, t-shirts)"]
[]
[null,"District Level"]
[]
[null,"Family Level"]
[]
[null,"Community Level"]
[]
[{"$nulls":11},"Evidence of Impact: When did you share the story?"]
[null,"Accountability and Data Project",{"$nulls":9},"Administration",{"$nulls":3},"mm/yyyy"]
[null,"School Counseling Programs - Access, Attainment, Achievement",{"$nulls":9},"Faculty and Staff",{"$nulls":3},"mm/yyyy"]
[{"$nulls":11},"School Community Council",{"$nulls":3},"mm/yyyy"]
[{"$nulls":11}," School Board",{"$nulls":3},"mm/yyyy"]
[]
[null,"Progress Monitoring: How is it going?",{"$nulls":7},"Data Graphic"]
[null,"Fall","Winter",null,"Spring"]
[null,"BOY HMH Growth Measure testing admininstred in all english classes. The program is new so we also started trainings.","MOY HMH Growth measure testing . Recognized student growth from BOY to MOY with sweatshirts and book beast masks. Met with district personal to get more training on program and access to data.",null,"EOY HMH Growth measure testing. Compared data from BOY to EOY and rewarded students for growth."]
{"$rows_empty":10}
[null,"Results/Outcome Statement"]
[]
[null,"Did you meet your goal? "]
[null,"We were not able to get 30% of our students to growth by the expected amount. Only 19% of students were able to growth by the expected growth amount. A contributing concern to this was a lack of student attendance as 17% of our students lacked testing data and this impacted our oveall results."]
{"$rows_empty":8}
[null,"Reflection: Project Outcome Analysis",{"$nulls":7}," Reflection: Learning and Next Steps"]
[]
[null,"We had a brand new program to learn and implement for this school year, we were able to jump right in and learn about how the testing works and how to collect/interpret data. Even with poor attendance this school year, we were able to still have significant growth in 19% of our students and at least some growth in 37% of our students, showing that 56% of our studnets made some kind of growth.",{"$nulls":7},"One of the major concerns for this school year was a lack of student attendance. This shows us that we need to be more engaged with helping students/families. To help with missing data, we need to help with more student testing make-ups."]

{"sheet":"Chart Generator","index":2,"n_rows":126,"n_cols":44,"rows_kept":126,"merged":[[0,0,8,18],[11,0,13,4],[11,6,11,14],[11,16,11,24],[11,27,13,31],[11,33,11,41],[11,43,11,51],[14,0,14,4],[14,27,14,31],[54,0,56,4],[54,6,54,14],[54,16,54,24],[54,27,56,31],[54,33,54,41],[54,43,54,51],[57,0,57,4],[57,27,57,31],[97,0,99,4],[97,18,99,22],[100,0,100,4],[100,18,100,22],[113,0,115,4],[113,18,115,22],[116,0,116,4],[116,18,116,22],[125,0,125,2]]}
["Directions: Below, you will find a sample of charts and graphs that you may wish to use to display your Data Project data. There are options to display data based in percentages as well as numbers (scroll to the right). Please look through the available options to determine which option makes the most sense for your project. You may enter your data in the tables along the left side of this sheet under each of the yellow \"Data Entry\" labels. You can modify these templates how you see fit, including renaming elements and adding or deleting the number of outcomes or data points. Please be sure your graphic includes a title and necessary labels. Once you've created the chart of your choice, you can copy and paste it into your data template on the previous tab. After pasting, the graph will remain linked to the original in this tab. Any changes you make will automatically update in the template."]
{"$rows_empty":10}
["2 Outcomes (percentages) - Quarterly",{"$nulls":5},"Gridlines and Vertical Axis ",{"$nulls":9},"Data Labels, No Gridlines, No Vertical Axis ",{"$nulls":10},"2 Outcomes (numbers) - Quarterly",{"$nulls":5},"Gridlines and Vertical Axis ",{"$nulls":9},"Data Labels, No Gridlines, No Vertical Axis"]
[]
[]
["Data Entry",{"$nulls":26},"Data Entry"]
[]
[null,"Outcome 1 Name","Outcome 2 Name",{"$nulls":25},"Outcome 1 Name","Outcome 2 Name"]
["1 QRTR",{"v":0.2,"d":"20%"},{"v":0.21,"d":"21%"},{"$nulls":24},"1 QRTR",{"v":2,"d":"2.0"},{"v":12,"d":"12.0"}]
["2 QRTR",{"v":0.15,"d":"15%"},{"v":0.22,"d":"22%"},{"$nulls":24},"2 QRTR",{"v":0.84,"d":"0.8"},{"v":10,"d":"10.0"}]
["3 QRTR",{"v":0.05,"d":"5%"},{"v":0.14,"d":"14%"},{"$nulls":24},"3 QRTR",{"v":4,"d":"4.0"},{"v":6,"d":"6.0"}]
["4 QRTR",{"v":0.01,"d":"1%"},{"v":0.96,"d":"96%"},{"$nulls":24},"4 QRTR",{"v":8,"d":"8.0"},{"v":1,"d":"1.0"}]
{"$rows_empty":33}
["2 Outcomes (percentages) - 5 Years",{"$nulls":5},"Gridlines and Vertical Axis",{"$nulls":9},"Data Labels, No Gridlines, No Vertical Axis",{"$nulls":10},"2 Outcomes (numbers) - 5 Years",{"$nulls":5},"Gridlines and Vertical Axis",{"$nulls":9},"Data Labels, No Gridlines, No Vertical Axis"]
[]
[]
["Data Entry",{"$nulls":26},"Data Entry"]
[]
[null,"Outcome 1 Name","Outcome 2 Name",{"$nulls":25},"Outcome 1 Name","Outcome 2 Name"]
["Year 1",{"v":0.89,"d":"89%"},{"v":0.34,"d":"34%"},{"$nulls":24},"Year 1",{"v":10,"d":"10.0"},{"v":2,"d":"2.0"}]
["Year 2",{"v":0.84,"d":"84%"},{"v":0.71,"d":"71%"},{"$nulls":24},"Year 2",{"v":15,"d":"15.0"},2.7]
["Year 3",{"v":0.86,"d":"86%"},{"v":0.54,"d":"54%"},{"$nulls":24},"Year 3",{"v":23,"d":"23.0"},{"v":3,"d":"3.0"}]
["Year 4",{"v":0.72,"d":"72%"},{"v":0.37,"d":"37%"},{"$nulls":24},"Year 4",{"v":32,"d":"32.0"},3.3]
["Year 5",{"v":0.7,"d":"70%"},{"v":0.35,"d":"35%"},{"$nulls":24},"Year 5",{"v":49,"d":"49.0"},3.3]
{"$rows_empty":32}
["2 Outcomes (percentages) - Pre & Post",{"$nulls":17},"2 Outcomes (numbers) - Pre & Post"]
[]
[]
["Data Entry",{"$nulls":17},"Data Entry"]
[null,"Pre","Post",{"$nulls":16},"Pre","Post"]
[null,"Pre Label","Post Label",{"$nulls":16},"Pre Label","Post Label"]
["Outcome 1",{"v":0.38,"d":"38%"},{"v":0.15,"d":"15%"},{"$nulls":15},"Outcome 1",{"v":38,"d":"38.0"},{"v":15,"d":"15.0"}]
["Outcome 2",{"v":0.65,"d":"65%"},{"v":0.77,"d":"77%"},{"$nulls":15},"Outcome 2",{"v":65,"d":"65.0"},{"v":77,"d":"77.0"}]
{"$rows_empty":8}
["Pie Chart (percentages) - Pre & Post (or Other Comparison)",{"$nulls":17},"Pie Chart (numbers) - Pre & Post (or Other Comparison)"]
[]
[]
["Data Entry",{"$nulls":17},"Data Entry"]
[null,"Pre","Post",{"$nulls":16},"Pre","Post"]
[null,"Pre Label","Post Label",{"$nulls":16},"Pre Label","Post Label"]
["Outcome 1",{"v":0.1,"d":"10%"},{"v":0.05,"d":"5%"},{"$nulls":15},"Outcome 1",{"v":3,"d":"3.0"},{"v":3,"d":"3.0"}]
["Outcome 2",{"v":0.2,"d":"20%"},{"v":0.25,"d":"25%"},{"$nulls":15},"Outcome 2",{"v":19,"d":"19.0"},{"v":22,"d":"22.0"}]
["Outcome 3",{"v":0.5,"d":"50%"},{"v":0.3,"d":"30%"},{"$nulls":15},"Outcome 3",{"v":54,"d":"54.0"},{"v":88,"d":"88.0"}]
["Outcome 4",{"v":0.1,"d":"10%"},{"v":0.2,"d":"20%"},{"$nulls":15},"Outcome 4",{"v":20,"d":"20.0"},{"v":29,"d":"29.0"}]
["Outcome 5",{"v":0.1,"d":"10%"},{"v":0.2,"d":"20%"},{"$nulls":15},"Outcome 5",{"v":19,"d":"19.0"},{"v":19,"d":"19.0"}]
[]
["* These should total 100%"]

{"sheet":"Data","index":3,"n_rows":2,"n_cols":46,"rows_kept":2,"hidden":true}
["School Year","School Name","School District","Area of Focus\nAchievement - 3\nAttainment - 1\nAccess - 2\nBlank - 0","Need Academic Support","Low Income","Ethnic/Cultural Backgrounds","Students with Disabilities","Need Academic Enrichment","Emergent Bilingual","Homeless","Refugee","Immigrant","First Generation College","Other","Other (Please Speciy)","Baseline Data","Goal Statement\nDirection","Goal Statement\nGroup","Goal Statement\nData Element","Goal Statement\nExpected","Goal Statement\nDate of Outcome","Goal Explanation (Optional)","Support SIP","New or Continuing: New = 2 Continuing = 1\nBlank = 0","# of past years","Significant & Meaningful Outcomes","SI - Individual","SI - Group","SI - Class","SI - Grade","SI - School","SI - District","SI - Family","SI - Community","Date Admin","Date Faculty","Date SCC","Date School Board","PM Fall","PM Winter","PM Spring","Meet Goal?\nUndetermined - 1\nNo - 2\nYes - 3","Results/Outcome Statement","Results: Project Outcomes","Results: Next Steps"]
[{"$f":"'Data Project Template'!C11:C11","v":"2021-22"},{"$f":"'Data Project Template'!C8:C8","v":"Hunter Jr High"},{"$f":"'Data Project Template'!C5:C5","v":"Granite District"},3,true,false,false,false,false,false,false,false,false,false,false,{"$f":"'Data Project Template'!O6:O6","v":0},{"$f":"'Data Project Template'!B14:B14","v":"30% of students will increase their reading band level by one step by the end of the school year, according to their grade level."},{"$f":"'Data Project Template'!J17:J17","v":"Increase"},{"$f":"'Data Project Template'!K17:K17","v":"All Studnets"},{"$f":"'Data Project Template'!L17:L17","v":"HMH score by 12 - 15 points or more."},{"$f":"'Data Project Template'!M17:M17","v":0.3},{"$f":"'Data Project Template'!P17:P17","v":"by the end of the 4th term"},{"$f":"'Data Project Template'!J20:J20","v":0},{"$f":"'Data Project Template'!B24:B24","v":"This is in alignment with out school improvement plan. Our school wide goal is to improve student literacy and reading."},1,{"$f":"'Data Project Template'!G28","v":3},{"$f":"'Data Project Template'!J24:J24","v":"Increasing student literacy rates will improve student academic, career, and life outcomes and goals. Additionally, our encouragement, rewards, and school wide iniative help to foster a positive and connected school environment."},{"$f":"'Data Project Template'!C32:C32","v":"Counselors will utilizing reading data to help place students in appropriate classes to give support and academic growth."},{"$f":"'Data Project Template'!C34:C34","v":0},{"$f":"'Data Project Template'!C36:C36","v":"Collaborated with teachers and assisted with HMH Growth Testing. Since HMH is a new testing program, we were also involved in trainings."},{"$f":"'Data Project Template'!C38:C38","v":0},{"$f":"'Data Project Template'!C40:C40","v":"School wide recognition and rewards (Sweatshirts, masks, t-shirts)"},{"$f":"'Data Project Template'!C42:C42","v":0},{"$f":"'Data Project Template'!C44:C44","v":0},{"$f":"'Data Project Template'!C46:C46","v":0},{"$f":"'Data Project Template'!P49","v":"mm/yyyy"},{"$f":"'Data Project Template'!P50","v":"mm/yyyy"},{"$f":"'Data Project Template'!P51","v":"mm/yyyy"},{"$f":"'Data Project Template'!P52","v":"mm/yyyy"},{"$f":"'Data Project Template'!B56:B56","v":"BOY HMH Growth Measure testing admininstred in all english classes. The program is new so we also started trainings."},{"$f":"'Data Project Template'!C56:C56","v":"MOY HMH Growth measure testing . Recognized student growth from BOY to MOY with sweatshirts and book beast masks. Met with district personal to get more training on program and access to data."},{"$f":"'Data Project Template'!E56:E56","v":"EOY HMH Growth measure testing. Compared data from BOY to EOY and rewarded students for growth."},2,{"$f":"'Data Project Template'!B70:B70","v":"We were not able to get 30% of our students to growth by the expected amount. Only 19% of students were able to growth by the expected growth amount. A contributing concern to this was a lack of student attendance as 17% of our students lacked testing data and this impacted our oveall results."},{"$f":"'Data Project Template'!B81:B81","v":"We had a brand new program to learn and implement for this school year, we were able to jump right in and learn about how the testing works and how to collect/interpret data. Even with poor attendance this school year, we were able to still have significant growth in 19% of our students and at least some growth in 37% of our students, showing that 56% of our studnets made some kind of growth."},{"$f":"'Data Project Template'!J81:J81","v":"One of the major concerns for this school year was a lack of student attendance. This shows us that we need to be more engaged with helping students/families. To help with missing data, we need to help with more student testing make-ups."}]

{"sheet":"School.District.Year","index":4,"n_rows":1059,"n_cols":6,"rows_kept":1059,"hidden":true}
[null,"School Name",null,"School Year",null,"District Name"]
[null,"Click here for Dropdown",null,"Click here for Dropdown",null,"Click here for Dropdown"]
[null,"Academy for Math Engineering & Science",null,"2021-22",null,"Academy for Math Engineering & Science"]
[null,"Academy of Computers and Engineering",null,"2022-23",null,"Advantage Arts Academy"]
[null,"Academy Park School",null,"2023-24",null,"Alpine District"]
[null,"Adams School",null,"2024-25",null,"American Academy of Innovation"]
[null,"Adams School",null,"2025-26",null,"American Leadership Academy"]
[null,"Adelaide School",{"$nulls":3},"American Preparatory Academy"]
[null,"Adele C. Young Intermediate",{"$nulls":3},"Ascent Academies of Utah"]
[null,"Advantage Arts Academy",{"$nulls":3},"Athenian eAcademy"]
[null,"Albert R. Lyman Middle",{"$nulls":3},"Athlos Academy of Utah"]
[null,"Albion Middle",{"$nulls":3},"Bear River Charter School"]
[null,"Alice C. Harris Intermediate",{"$nulls":3},"Beaver District"]
[null,"Alpine Online School",{"$nulls":3},"Beehive Science & Technology Academy"]
[null,"Alpine School",{"$nulls":3},"Bonneville Academy"]
[null,"Alta High",{"$nulls":3},"Box Elder District"]
[null,"Alta View School",{"$nulls":3},"Bridge Elementary School"]
[null,"Altamont High",{"$nulls":3},"C.S. Lewis Academy"]
[null,"Altamont School",{"$nulls":3},"Cache District"]
[null,"Altara School",{"$nulls":3},"Canyon Grove Academy"]
[null,"Amelia Earhart School",{"$nulls":3},"Canyon Rim Academy"]
[null,"American Academy of Innovation",{"$nulls":3},"Canyons District"]
[null,"American Fork High",{"$nulls":3},"Carbon District"]
[null,"American Fork Jr High",{"$nulls":3},"Channing Hall"]
[null,"American Leadership Academy",{"$nulls":3},"City Academy"]
[null,"American Preparatory Academy",{"$nulls":3},"Daggett District"]
[null,"American Preparatory Academy - Accelerated School",{"$nulls":3},"Davinci Academy"]
[null,"American Preparatory Academy - Draper #2",{"$nulls":3},"Davis District"]
[null,"American Preparatory Academy - Draper #3",{"$nulls":3},"Dixie Montessori Academy"]
[null,"American Preparatory Academy - Salem",{"$nulls":3},"Dual Immersion Academy"]
[null,"American Preparatory Academy - The School for New Americans",{"$nulls":3},"Duchesne District"]
[null,"Anna Smith School",{"$nulls":3},"Early Light Academy at Daybreak"]
[null,"Antelope Canyon Elementary",{"$nulls":3},"East Hollywood High"]
[null,"Antelope School",{"$nulls":3},"Edith Bowen Laboratory School"]
[null,"Antimony School",{"$nulls":3},"Emery District"]
[null,"Apple Valley School",{"$nulls":3},"Endeavor Hall"]
[null,"Arcadia School",{"$nulls":3},"Entheos Academy"]
[null,"Arrowhead School",{"$nulls":3},"Esperanza School"]
[null,"Art City School",{"$nulls":3},"Excelsior Academy"]
[null,"Ascent Academies of Utah - West Valley",{"$nulls":3},"Fast Forward High"]
[null,"Ascent Academies of Utah Farmington",{"$nulls":3},"Franklin Discovery Academy"]
[null,"Ascent Academies of Utah Lehi",{"$nulls":3},"Freedom Preparatory Academy"]
[null,"Ascent Academies of Utah West Jordan",{"$nulls":3},"Garfield District"]
[null,"Ashley School",{"$nulls":3},"Gateway Preparatory Academy"]
[null,"Ashley Valley Education Ctr.",{"$nulls":3},"George Washington Academy"]
[null,"Ashman School",{"$nulls":3},"Good Foundations Academy"]
[null,"Aspen School",{"$nulls":3},"Grand District"]
[null,"Athenian eAcademy",{"$nulls":3},"Granite District"]
[null,"Athlos Academy of Utah",{"$nulls":3},"Greenwood Charter School"]
[null,"Backman School",{"$nulls":3},"Guadalupe School"]
[null,"Barnett School",{"$nulls":3},"Hawthorn Academy"]
[null,"Barratt School",{"$nulls":3},"Highmark Charter School"]
[null,"Bastian School",{"$nulls":3},"Ignite Entrepreneurship Academy"]
[null,"Bates School",{"$nulls":3},"Intech Collegiate Academy"]
[null,"Beacon Heights School",{"$nulls":3},"Iron District"]
[null,"Bear River Charter School",{"$nulls":3},"Itineris Early College High"]
[null,"Bear River High",{"$nulls":3},"Jefferson Academy"]
[null,"Bear River Middle",{"$nulls":3},"John Hancock Charter School"]
[null,"Beaver High",{"$nulls":3},"Jordan District"]
[null,"Beehive School",{"$nulls":3},"Juab District"]
[null,"Beehive Science & Technology Academy",{"$nulls":3},"Kane District"]
[null,"Belknap School",{"$nulls":3},"Karl G. Maeser Preparatory Academy"]
[null,"Bell View School",{"$nulls":3},"Lakeview Academy"]
[null,"Bella Vista School",{"$nulls":3},"Leadership Academy of Utah"]
[null,"Belmont School",{"$nulls":3},"Leadership Learning Academy"]
[null,"Ben Lomond High",{"$nulls":3},"Legacy Preparatory Academy"]
[null,"Bennion Jr High",{"$nulls":3},"Lincoln Academy"]
[null,"Bennion School",{"$nulls":3},"Logan City District"]
[null,"BIE (San Juan)",{"$nulls":3},"Lumen Scholar Institute"]
[null,"BIE (Sevier)",{"$nulls":3},"Mana Academy Charter School"]
[null,"Big Water School",{"$nulls":3},"Maria Montessori Academy"]
[null,"Big Water School",{"$nulls":3},"Merit College Preparatory Academy"]
[null,"Bingham High",{"$nulls":3},"Millard District"]
[null,"Birch Creek School",{"$nulls":3},"Moab Charter School"]
[null,"Black Ridge School",{"$nulls":3},"Monticello Academy"]
[null,"Blackridge School",{"$nulls":3},"Morgan District"]
[null,"Blanding School",{"$nulls":3},"Mountain Heights Academy"]
[null,"Blind Region 2",{"$nulls":3},"Mountain Sunrise Academy"]
[null,"Blind South",{"$nulls":3},"Mountain West Montessori Academy"]
[null,"Bloomington Hills School",{"$nulls":3},"Mountainville Academy"]
[null,"Bloomington School",{"$nulls":3},"Murray District"]
[null,"Blue Peak High",{"$nulls":3},"Navigator Pointe Academy"]
[null,"Bluff Ridge School",{"$nulls":3},"Nebo District"]
[null,"Bluff School",{"$nulls":3},"No. UT. Acad. for Math Engineering & Science"]
[null,"Bluffdale School",{"$nulls":3},"Noah Webster Academy"]
[null,"Bonneville Academy",{"$nulls":3},"North Davis Preparatory Academy"]
[null,"Bonneville High",{"$nulls":3},"North Sanpete District"]
[null,"Bonneville Jr High",{"$nulls":3},"North Star Academy"]
[null,"Bonneville School",{"$nulls":3},"North Summit District"]
[null,"Bonneville School",{"$nulls":3},"Odyssey Charter School"]
[null,"Bonneville School",{"$nulls":3},"Ogden City District"]
[null,"Book Cliff School",{"$nulls":3},"Ogden Preparatory Academy"]
[null,"Boulder School",{"$nulls":3},"Open Classroom"]
[null,"Boulton School",{"$nulls":3},"Pacific Heritage Academy"]
[null,"Bountiful High",{"$nulls":3},"Paradigm High School"]
[null,"Bountiful Jr High",{"$nulls":3},"Park City District"]
[null,"Bountiful School",{"$nulls":3},"Pinnacle Canyon Academy"]
[null,"Box Elder High",{"$nulls":3},"Piute District"]
[null,"Box Elder Middle",{"$nulls":3},"Promontory School of Expeditionary Learning"]
[null,"Bridge Elementary School",{"$nulls":3},"Providence Hall"]
[null,"Bridger School",{"$nulls":3},"Provo District"]
[null,"Bridges Nebo Transition Center",{"$nulls":3},"Quest Academy"]
[null,"Brighton High",{"$nulls":3},"Ranches Academy"]
[null,"Brockbank School",{"$nulls":3},"Reagan Academy"]
[null,"Brookhaven School",{"$nulls":3},"Real Salt Lake Academy High School"]
[null,"Brookside School",{"$nulls":3},"Renaissance Academy"]
[null,"Brookwood School",{"$nulls":3},"Rich District"]
[null,"Bruin Point School",{"$nulls":3},"Rockwell Charter High School"]
[null,"Bryant Middle",{"$nulls":3},"Roots Charter High School"]
[null,"Bryce Valley High",{"$nulls":3},"Salt Lake Arts Academy"]
[null,"Bryce Valley School",{"$nulls":3},"Salt Lake Center for Science Education"]
[null,"Buffalo Point School",{"$nulls":3},"Salt Lake District"]
[null,"Burch Creek School",{"$nulls":3},"Salt Lake School for the Performing Arts"]
[null,"Butler Middle",{"$nulls":3},"San Juan District"]
[null,"Butler School",{"$nulls":3},"Scholar Academy"]
[null,"Butterfield Canyon School",{"$nulls":3},"Sevier District"]
[null,"C.S. Lewis Academy",{"$nulls":3},"Soldier Hollow Charter School"]
[null,"Cache Alternative High",{"$nulls":3},"South Sanpete District"]
[null,"Calvin S. Smith School",{"$nulls":3},"South Summit District"]
[null,"Canyon Creek School",{"$nulls":3},"Spectrum Academy"]
[null,"Canyon Crest School",{"$nulls":3},"St. George Academy"]
[null,"Canyon Grove Academy",{"$nulls":3},"Success Academy"]
[null,"Canyon Rim Academy",{"$nulls":3},"Summit Academy"]
[null,"Canyon School",{"$nulls":3},"Summit Academy High School"]
[null,"Canyon School",{"$nulls":3},"Syracuse Arts Academy"]
[null,"Canyon View High",{"$nulls":3},"Terra Academy"]
[null,"Canyon View Jr High",{"$nulls":3},"The Center for Creativity Innovation and Discovery"]
[null,"Canyon View Middle",{"$nulls":3},"Thomas Edison"]
[null,"Canyon View Middle School",{"$nulls":3},"Timpanogos Academy"]
[null,"Canyon View School",{"$nulls":3},"Tintic District"]
[null,"Canyons Technical Education Center",{"$nulls":3},"Tooele District"]
[null,"Canyons Transition Academy",{"$nulls":3},"Treeside Charter School"]
[null,"Canyons Virtual High School",{"$nulls":3},"Tuacahn High School for the Performing Arts"]
[null,"Carbon High",{"$nulls":3},"Uintah District"]
[null,"Carl Sandburg School",{"$nulls":3},"Uintah River High"]
[null,"Cascade School",{"$nulls":3},"Utah Career Path High School"]
[null,"Castle Dale School",{"$nulls":3},"Utah Connections Academy"]
[null,"Castle Heights School",{"$nulls":3},"Utah County Academy of Science"]
[null,"Castle Valley Center",{"$nulls":3},"Utah International Charter School"]
[null,"Cedar City High",{"$nulls":3},"Utah Military Academy"]
[null,"Cedar East School",{"$nulls":3},"Utah Schools for Deaf & Blind"]
[null,"Cedar Middle",{"$nulls":3},"Utah Virtual Academy"]
[null,"Cedar North School",{"$nulls":3},"Valley Academy"]
[null,"Cedar Ridge High",{"$nulls":3},"Vanguard Academy"]
[null,"Cedar Ridge School",{"$nulls":3},"Venture Academy"]
[null,"Cedar Ridge School",{"$nulls":3},"Vista School"]
[null,"Cedar South School",{"$nulls":3},"Voyage Academy"]
[null,"Cedar Valley High",{"$nulls":3},"Walden School of Liberal Arts"]
[null,"Cedar Valley School",{"$nulls":3},"Wallace Stegner Academy"]
[null,"Centennial Elementary",{"$nulls":3},"Wasatch District"]
[null,"Centennial Jr High",{"$nulls":3},"Wasatch Peak Academy"]
[null,"Centennial Middle",{"$nulls":3},"Wasatch Waldorf Charter School"]
[null,"Centennial School",{"$nulls":3},"Washington District"]
[null,"Centerville Jr High",{"$nulls":3},"Wayne District"]
[null,"Centerville School",{"$nulls":3},"Weber District"]
[null,"Central Davis Jr High",{"$nulls":3},"Weber State University Charter Academy"]
[null,"Central Region Deaf",{"$nulls":3},"Weilenmann School of Discovery"]
[null,"Central School",{"$nulls":3},"Winter Sports School"]
[null,"Century School"]
[null,"Channing Hall"]
[null,"Cherry Creek School"]
[null,"Cherry Hill School"]
[null,"Children Behavior Therapy Unit"]
[null,"Churchill Jr High"]
[null,"Circleville School"]
[null,"City Academy"]
[null,"Clarke N. Johnsen Jr High"]
[null,"Clayton Middle"]
[null,"Clearfield High"]
[null,"Clearfield Job Corps"]
[null,"Cleveland School"]
[null,"Clinton School"]
[null,"Columbia School"]
[null,"Columbia School"]
[null,"Columbus Community Center"]
[null,"Con Amore School"]
[null,"Contracted Special Education"]
[null,"Cook School"]
[null,"Copper Canyon School"]
[null,"Copper Canyon School"]
[null,"Copper Hills High"]
[null,"Copper Hills School"]
[null,"Copper Mountain Middle"]
[null,"Copperview School"]
[null,"Coral Canyon School"]
[null,"Coral Cliffs School"]
[null,"Corner Canyon High"]
[null,"Cottonwood High"]
[null,"Cottonwood School"]
[null,"Cottonwood School"]
[null,"Country View School"]
[null,"Creekside School"]
[null,"Creekview School"]
[null,"Crescent School"]
[null,"Crestview School"]
[null,"Crestview School"]
[null,"Crimson Cliffs High"]
[null,"Crimson Cliffs Middle"]
[null,"Crimson View School"]
[null,"Cyprus High"]
[null,"Dale Young Community High"]
[null,"Dan W. Peterson"]
[null,"Daniels Canyon School"]
[null,"David Gourley School"]
[null,"Davinci Academy"]
[null,"Davis Connect 7-12"]
[null,"Davis Connect 7-8"]
[null,"Davis Connect K-6"]
[null,"Davis High"]
[null,"Davis School"]
[null,"Daybreak School"]
[null,"Deerfield School"]
[null,"Delta High"]
[null,"Delta Middle"]
[null,"Delta North School"]
[null,"Delta South School"]
[null,"Desert Hills High"]
[null,"Desert Hills Middle"]
[null,"Diamond Fork Junior High"]
[null,"Diamond Ridge High School"]
[null,"Diamond Ridge School"]
[null,"Diamond Valley School"]
[null,"Dilworth School"]
[null,"Discovery School"]
[null,"Discovery School"]
[null,"Dixie High"]
[null,"Dixie Middle"]
[null,"Dixie Montessori Academy"]
[null,"Dixon Middle"]
[null,"Douglas T. Orchard School"]
[null,"Doxey School"]
[null,"Draper Park Middle"]
[null,"Draper School"]
[null,"Dry Creek School"]
[null,"Dual Immersion Academy"]
[null,"Duchesne High"]
[null,"Duchesne School"]
[null,"Dugway"]
[null,"Eagle Bay School"]
[null,"Eagle Valley School"]
[null,"Eagle View School"]
[null,"Eaglecrest School"]
[null,"Early Light Academy at Daybreak"]
[null,"East High"]
[null,"East Hollywood High"]
[null,"East Layton School"]
[null,"East Meadows School"]
[null,"East Midvale School"]
[null,"East Sandy School"]
[null,"East School"]
[null,"East Shore Online"]
[null,"Eastlake School"]
[null,"Eastmont Middle"]
[null,"Eastwood School"]
[null,"Ecker Hill Middle"]
[null,"Edgemont School"]
[null,"Edgemont School"]
[null,"Edison School"]
[null,"Edith Bowen Laboratory School"]
[null,"Eisenhower Jr High"]
[null,"Elizabeth DeLong School of the Deaf"]
[null,"Elk Meadows School"]
[null,"Elk Ridge Middle"]
[null,"Elk Run Elementary"]
[null,"Ellis School"]
[null,"Ellison Park School"]
[null,"Emerson School"]
[null,"Emery High"]
[null,"Endeavor Hall"]
[null,"Endeavour School"]
[null,"Enoch School"]
[null,"Ensign School"]
[null,"Enterprise High"]
[null,"Enterprise School"]
[null,"Entheos Academy"]
[null,"Entheos Academy Magna"]
[null,"Entrada"]
[null,"Ephraim Middle"]
[null,"Ephraim School"]
[null,"Escalante High"]
[null,"Escalante School"]
[null,"Escalante School"]
[null,"Escalante Valley School"]
[null,"Eskdale High"]
[null,"Esperanza School"]
[null,"Eureka School"]
[null,"Evergreen Jr High"]
[null,"Excelsior Academy"]
[null,"Fairfield Jr High"]
[null,"Fairview School"]
[null,"Falcon Ridge School"]
[null,"Farmington High"]
[null,"Farmington Jr High"]
[null,"Farmington School"]
[null,"Farr West School"]
[null,"Fast Forward High"]
[null,"Ferron School"]
[null,"Fiddlers Canyon School"]
[null,"Fielding School"]
[null,"Fillmore Middle"]
[null,"Fillmore School"]
[null,"Flaming Gorge School"]
[null,"Foothill School"]
[null,"Foothill School"]
[null,"Foothills School"]
[null,"Foothills School"]
[null,"Forbes School"]
[null,"Fort Herriman Middle"]
[null,"Fossil Ridge Intermediate"]
[null,"Fountain Green School"]
[null,"Fox Hills School"]
[null,"Fox Hollow School"]
[null,"Fox Hollow School"]
[null,"Foxboro School"]
[null,"Franklin Discovery Academy"]
[null,"Franklin School"]
[null,"Franklin School"]
[null,"Freedom Preparatory Academy"]
[null,"Freedom Preparatory Academy - Vineyard"]
[null,"Freedom School"]
[null,"Freedom School"]
[null,"Fremont High"]
[null,"Fremont School"]
[null,"Frontier Middle School"]
[null,"Garland School"]
[null,"Garrison 7 & 8th"]
[null,"Garrison School"]
[null,"Gateway Preparatory Academy"]
[null,"Gearld Wright School"]
[null,"Geneva School"]
[null,"George Washington Academy"]
[null,"George Washington High"]
[null,"Glendale Middle"]
[null,"Golden Fields School"]
[null,"Goldminer's Daughter"]
[null,"Good Foundations Academy"]
[null,"Goshen School"]
[null,"Grand County High"]
[null,"Grand County Middle"]
[null,"Granger High"]
[null,"Granger School"]
[null,"Granite Connection High"]
[null,"Granite Park Jr High"]
[null,"Granite School"]
[null,"Granite Technical Institute"]
[null,"Grant School"]
[null,"Grantsville High"]
[null,"Grantsville Jr High"]
[null,"Grantsville School"]
[null,"Green Acres School"]
[null,"Green Canyon High School"]
[null,"Green River High"]
[null,"Greenville School"]
[null,"Greenwood Charter School"]
[null,"Greenwood School"]
[null,"Grouse Creek School"]
[null,"Grouse Creek School"]
[null,"Grovecrest School"]
[null,"Guadalupe School"]
[null,"Gunnison Valley High"]
[null,"Gunnison Valley Middle"]
[null,"Gunnison Valley School"]
[null,"H C Burton School"]
[null,"H Guy Child School"]
[null,"Hanksville School"]
[null,"Harry S. Truman School"]
[null,"Hartvigsen School"]
[null,"Harvest School"]
[null,"Hawthorn Academy"]
[null,"Hawthorn Academy South Jordan"]
[null,"Hawthorne School"]
[null,"Hayden Peak School"]
[null,"Heartland School"]
[null,"Heber Valley School"]
[null,"Helen M. Knight School"]
[null,"Helper Middle"]
[null,"Heritage School"]
[null,"Heritage School"]
[null,"Heritage School"]
[null,"Heritage School"]
[null,"Herriman High"]
[null,"Herriman School"]
[null,"Hidden Hollow School"]
[null,"Hidden Valley Middle"]
[null,"Highland High"]
[null,"Highland Junior High"]
[null,"Highland Park School"]
[null,"Highland School"]
[null,"Highmark Charter School"]
[null,"Hill Field School"]
[null,"Hillcrest High"]
[null,"Hillcrest Jr High"]
[null,"Hillcrest School"]
[null,"Hillcrest School"]
[null,"Hillsdale School"]
[null,"Hillside Middle"]
[null,"Hillside School"]
[null,"Hobble Creek School"]
[null,"Holbrook School"]
[null,"Holt School"]
[null,"Hooper School"]
[null,"Horace Mann School"]
[null,"Horizon Academy"]
[null,"Horizon School"]
[null,"Horizon School"]
[null,"Horizon School"]
[null,"Horizonte Instruction & Training Center"]
[null,"Howard R. Driggs School"]
[null,"Hunter High"]
[null,"Hunter Jr High"]
[null,"Hunter School"]
[null,"Huntington School"]
[null,"Hurricane High"]
[null,"Hurricane Intermediate"]
[null,"Hurricane Middle"]
[null,"Hurricane School"]
[null,"Ibapah School"]
[null,"Ignite Entrepreneurship Academy"]
[null,"Independence High"]
[null,"Indian Hills Middle"]
[null,"Indian Hills School"]
[null,"Innovations High School"]
[null,"Innovations High School"]
[null,"Intech Collegiate Academy"]
[null,"Iron Springs School"]
[null,"Itineris Early College High"]
[null,"J.R. Smith School"]
[null,"Jackling School"]
[null,"James E. Moss School"]
[null,"James Madison School"]
[null,"Jean Massieu School for the Deaf"]
[null,"Jefferson Academy"]
[null,"Jeremy Ranch School"]
[null,"Jim Bridger School"]
[null,"Joel P. Jensen Middle"]
[null,"John C. Fremont School"]
[null,"John F. Kennedy Jr High"]
[null,"John Hancock Charter School"]
[null,"Jordan Academy for Technology & Careers South"]
[null,"Jordan Academy for Technology and Careers - North"]
[null,"Jordan High"]
[null,"Jordan Hills School"]
[null,"Jordan Ridge School"]
[null,"Jordan Valley School"]
[null,"Juab High"]
[null,"Juab Jr High"]
[null,"Kanab High"]
[null,"Kanab Middle"]
[null,"Kanab School"]
[null,"Kanesville School"]
[null,"Karl G. Maeser Preparatory Academy"]
[null,"Kauri Sue Hamilton"]
[null,"Kay's Creek School"]
[null,"Kaysville Jr High"]
[null,"Kaysville School"]
[null,"Kearns High"]
[null,"Kearns Jr High"]
[null,"Kenneth Burdett School"]
[null,"King School"]
[null,"Kings Peak School"]
[null,"Knowlton School"]
[null,"Koosharem School"]
[null,"La Sal School"]
[null,"Lake Mountain Middle"]
[null,"Lake Powell High School"]
[null,"Lake Powell High School"]
[null,"Lake Ridge School"]
[null,"Lake View School"]
[null,"Lakeridge Jr High"]
[null,"Lakeside School"]
[null,"Lakeview Academy"]
[null,"Lakeview School"]
[null,"Lakeview School"]
[null,"Landmark High"]
[null,"Lapoint School"]
[null,"Larsen School"]
[null,"Launch High"]
[null,"Lava Ridge Intermediate"]
[null,"LaVerkin School"]
[null,"Layton High"]
[null,"Layton School"]
[null,"LCSD Center for Home Learning"]
[null,"Leadership Academy of Utah"]
[null,"Leadership Learning Academy"]
[null,"Leadership Learning Academy - Ogden"]
[null,"Legacy Jr High"]
[null,"Legacy Preparatory Academy"]
[null,"Legacy School"]
[null,"Legacy School"]
[null,"Lehi High"]
[null,"Lehi Jr High"]
[null,"Lehi School"]
[null,"Lewiston School"]
[null,"Liberty Hills Elementary"]
[null,"Liberty School"]
[null,"Liberty School"]
[null,"Lincoln Academy"]
[null,"Lincoln School"]
[null,"Lincoln School"]
[null,"Lincoln School"]
[null,"Lincoln School"]
[null,"Lindon School"]
[null,"Little Valley School"]
[null,"Loa School"]
[null,"Logan High"]
[null,"Lomond View School"]
[null,"Lone Peak High"]
[null,"Lone Peak School"]
[null,"Longview School"]
[null,"Lumen Scholar Institute"]
[null,"M. Lynn Bennion School"]
[null,"Maeser School"]
[null,"Magna School"]
[null,"Majestic Fields School"]
[null,"Majestic School"]
[null,"Majestic School"]
[null,"Malan's Peak Secondary"]
[null,"Mana Academy Charter School"]
[null,"Manila High"]
[null,"Manila School"]
[null,"Manila School"]
[null,"Manti High"]
[null,"Manti School"]
[null,"Maple Mountain High"]
[null,"Maple Ridge School"]
[null,"Mapleton Junior High"]
[null,"Mapleton School"]
[null,"Maria Montessori Academy"]
[null,"Mary W. Jackson School"]
[null,"McKinley School"]
[null,"Mcmillan School"]
[null,"Mcpolin School"]
[null,"Meadow Brook School"]
[null,"Meadow School"]
[null,"Meadowbrook School"]
[null,"Meadowlark School"]
[null,"Merit College Preparatory Academy"]
[null,"Midas Creek School"]
[null,"Middle Canyon School"]
[null,"Midland School"]
[null,"Midvale Middle"]
[null,"Midvale School"]
[null,"Midvalley School"]
[null,"Midway School"]
[null,"Milford High"]
[null,"Milford School"]
[null,"Mill Creek School"]
[null,"Millard High"]
[null,"Millcreek High"]
[null,"Millcreek Jr High"]
[null,"Millville School"]
[null,"Minersville School"]
[null,"Minersville School"]
[null,"Moab Charter School"]
[null,"Mona School"]
[null,"Monroe School"]
[null,"Monroe School"]
[null,"Mont Harmon Middle"]
[null,"Monte Vista School"]
[null,"Montezuma Creek School"]
[null,"Monticello Academy"]
[null,"Monticello Academy West Point"]
[null,"Monticello High"]
[null,"Monticello School"]
[null,"Monument Valley High"]
[null,"Morgan High"]
[null,"Morgan Middle"]
[null,"Morgan School"]
[null,"Morgan School"]
[null,"Morningside School"]
[null,"Moroni School"]
[null,"Mound Fort Junior High"]
[null,"Mount Jordan Middle"]
[null,"Mount Logan Middle"]
[null,"Mount Mahogany School"]
[null,"Mount Ogden Junior High"]
[null,"Mountain Creek Middle School"]
[null,"Mountain Crest High"]
[null,"Mountain Green Middle"]
[null,"Mountain Green School"]
[null,"Mountain Heights Academy"]
[null,"Mountain High"]
[null,"Mountain Point Elementary"]
[null,"Mountain Ridge High"]
[null,"Mountain Ridge Jr High"]
[null,"Mountain Shadows School"]
[null,"Mountain Sunrise Academy"]
[null,"Mountain Trails School"]
[null,"Mountain View High"]
[null,"Mountain View School"]
[null,"Mountain View School"]
[null,"Mountain View School"]
[null,"Mountain West Montessori Academy"]
[null,"Mountainside School"]
[null,"Mountainville Academy"]
[null,"Mt. Loafer School"]
[null,"Mt. Nebo Middle"]
[null,"Mt. Pleasant School"]
[null,"Mueller Park Jr High"]
[null,"Muir School"]
[null,"Municipal School"]
[null,"Murray Adult Transition"]
[null,"Murray High"]
[null,"Myton School"]
[null,"Naples School"]
[null,"Navajo Mountain High"]
[null,"Navigator Pointe Academy"]
[null,"Nebo Advanced Learning Center"]
[null,"Nebo View School"]
[null,"Neil Armstrong Academy"]
[null,"Neola School"]
[null,"New Bridge School"]
[null,"Newman School"]
[null,"Nibley Park School"]
[null,"Nibley School"]
[null,"No. UT. Acad. for Math Engineering & Science"]
[null,"No. UT. Acad. of Math Engineering & Science - Ogden"]
[null,"Noah Webster Academy"]
[null,"North Cache Middle School"]
[null,"North Davis Jr High"]
[null,"North Davis Preparatory Academy"]
[null,"North Layton Jr High"]
[null,"North Ogden Jr High"]
[null,"North Ogden School"]
[null,"North Park School"]
[null,"North Park School"]
[null,"North Park School"]
[null,"North Point School"]
[null,"North Region Blind"]
[null,"North Rich School"]
[null,"North Sanpete High"]
[null,"North Sanpete Middle"]
[null,"North Sevier High"]
[null,"North Sevier Middle"]
[null,"North Star Academy"]
[null,"North Star School"]
[null,"North Summit High"]
[null,"North Summit Middle"]
[null,"North Summit School"]
[null,"Northlake School"]
[null,"Northridge High"]
[null,"Northridge School"]
[null,"Northwest Middle"]
[null,"Oak Canyon Jr High"]
[null,"Oak Hills School"]
[null,"Oak Hollow School"]
[null,"Oak Springs School"]
[null,"Oakcrest School"]
[null,"Oakdale School"]
[null,"Oakridge School"]
[null,"Oakwood School"]
[null,"Odyssey Charter School"]
[null,"Odyssey School"]
[null,"Odyssey School"]
[null,"Ogden High"]
[null,"Ogden Online Elementary"]
[null,"Ogden Online Secondary"]
[null,"Ogden Preparatory Academy"]
[null,"Old Mill School"]
[null,"Old Mill School"]
[null,"Olene Walker Elementary"]
[null,"Olympus High"]
[null,"Olympus Jr High"]
[null,"Open Classroom"]
[null,"Oquirrh Hills Middle"]
[null,"Oquirrh Hills School"]
[null,"Oquirrh School"]
[null,"Orchard Hills School"]
[null,"Orchard School"]
[null,"Orchard School"]
[null,"Orchard Springs"]
[null,"Orem High"]
[null,"Orem Jr High"]
[null,"Orem School"]
[null,"Orion Jr High"]
[null,"Oscarson School"]
[null,"Out of State School"]
[null,"Out of State School"]
[null,"Out of State School"]
[null,"Out of State School"]
[null,"Out of State School"]
[null,"Overlake School"]
[null,"Pacific Heritage Academy"]
[null,"Pahvant School"]
[null,"Panguitch High"]
[null,"Panguitch Middle"]
[null,"Panguitch School"]
[null,"Panorama School"]
[null,"Paradigm High School"]
[null,"Paradise Canyon"]
[null,"Park City High"]
[null,"Park Lane School"]
[null,"Park School"]
[null,"Park Valley School"]
[null,"Park Valley School"]
[null,"Park View School"]
[null,"Parkside School"]
[null,"Parkside School"]
[null,"Parkview School"]
[null,"Parleys Park School"]
[null,"Parowan High"]
[null,"Parowan School"]
[null,"Payson High"]
[null,"Payson Jr High"]
[null,"Peruvian Park School"]
[null,"Philo T. Farnsworth School"]
[null,"Pine View High"]
[null,"Pine View Middle"]
[null,"Pinnacle Canyon Academy"]
[null,"Pioneer School"]
[null,"Pioneer School"]
[null,"Piute High"]
[null,"Plain City School"]
[null,"Pleasant Creek School"]
[null,"Pleasant Green School"]
[null,"Pleasant Grove High"]
[null,"Pleasant Grove Jr High"]
[null,"Plymouth School"]
[null,"Polaris High School"]
[null,"Polaris West High"]
[null,"Polk School"]
[null,"Pony Express School"]
[null,"Post HS Self-Cont"]
[null,"Promontory School of Expeditionary Learning"]
[null,"Providence Hall"]
[null,"Providence School"]
[null,"Provo Adult Education"]
[null,"Provo eSchool"]
[null,"Provo High"]
[null,"Provo Peaks School"]
[null,"Provost School"]
[null,"Quail Hollow School"]
[null,"Quest Academy"]
[null,"Ranches Academy"]
[null,"Reading School"]
[null,"Reagan Academy"]
[null,"Real Salt Lake Academy High School"]
[null,"Red Cliff School"]
[null,"Red Hills Middle"]
[null,"Red Mountain School"]
[null,"Redwood School"]
[null,"Rees School"]
[null,"Renaissance Academy"]
[null,"Renaissance Academy"]
[null,"Rich High"]
[null,"Rich Middle School"]
[null,"Richfield High"]
[null,"Ridge View Elementary"]
[null,"Ridgecrest School"]
[null,"Ridgeline High School"]
[null,"Ridgeline School"]
[null,"Riley School"]
[null,"River Heights School"]
[null,"River Rock School"]
[null,"Riverdale School"]
[null,"Rivers Edge School"]
[null,"Riverside School"]
[null,"Riverside School"]
[null,"Riverton High"]
[null,"Riverton School"]
[null,"Riverview Jr High"]
[null,"Riverview School"]
[null,"Riverview School"]
[null,"Robert Frost School"]
[null,"Rock Canyon School"]
[null,"Rockwell Charter High School"]
[null,"Rocky Mountain Jr High"]
[null,"Rocky Mountain Middle"]
[null,"Rocky Mountain School"]
[null,"Rolling Meadows School"]
[null,"Roosevelt Jr High"]
[null,"Roosevelt School"]
[null,"Roots Charter High School"]
[null,"Rosamond School"]
[null,"Rose Creek School"]
[null,"Rose Park School"]
[null,"Rose Springs School"]
[null,"Rosecrest School"]
[null,"Roy High"]
[null,"Roy Jr High"]
[null,"Roy School"]
[null,"Sage Creek School"]
[null,"Sage Hills School"]
[null,"Salem Hills High"]
[null,"Salem Junior High"]
[null,"Salem School"]
[null,"Salina School"]
[null,"Sally Mauro School"]
[null,"Salt Lake Arts Academy"]
[null,"Salt Lake Center for Science Education"]
[null,"Salt Lake School for the Performing Arts"]
[null,"Salt Lake Technology Center"]
[null,"Salt Lake Virtual School"]
[null,"San Juan High"]
[null,"San Rafael Middle School"]
[null,"Sand Ridge Jr High"]
[null,"Sand Springs School"]
[null,"Sandstone School"]
[null,"Sandy School"]
[null,"Santa Clara School"]
[null,"Santaquin School"]
[null,"Saratoga Shores School"]
[null,"Scholar Academy"]
[null,"Scott M Matheson Jr High"]
[null,"Sego Lily School"]
[null,"Serv By Appt"]
[null,"Settlement Canyon School"]
[null,"Sevier Career and Technical Education Center"]
[null,"Shadow Valley School"]
[null,"Sharon School"]
[null,"Shelley School"]
[null,"Shoreline Junior High"]
[null,"Sierra Bonita Elementary"]
[null,"Silver Crest School"]
[null,"Silver Hills School"]
[null,"Silver Lake Elementary"]
[null,"Silver Mesa School"]
[null,"Silver Ridge Elementary"]
[null,"Silver Summit Academy"]
[null,"Silver Summit School"]
[null,"Sky View High"]
[null,"Skyline High"]
[null,"Skyridge High School"]
[null,"Slate Canyon"]
[null,"Snow Canyon High"]
[null,"Snow Canyon Middle"]
[null,"Snow Horse School"]
[null,"Snow Springs School"]
[null,"Snowcrest Jr High"]
[null,"Snowville School"]
[null,"Soldier Hollow Charter School"]
[null,"South Cache Middle School"]
[null,"South Clearfield School"]
[null,"South Davis Jr High"]
[null,"South Hills Middle"]
[null,"South Jordan Middle"]
[null,"South Jordan School"]
[null,"South Kearns School"]
[null,"South Mesa Elementary"]
[null,"South Ogden Jr High"]
[null,"South Park Academy"]
[null,"South Rich School"]
[null,"South Sanpete Education Support Center"]
[null,"South Sevier High"]
[null,"South Sevier Middle"]
[null,"South Summit High"]
[null,"South Summit Middle"]
[null,"South Summit School"]
[null,"South Valley School"]
[null,"South Weber School"]
[null,"Southland School"]
[null,"Southpointe Adult High"]
[null,"Southwest Educational Academy"]
[null,"Southwest High"]
[null,"Spanish Fork High"]
[null,"Spanish Fork Jr High"]
[null,"Spanish Oaks School"]
[null,"Spec. Educ. ATC"]
[null,"Spectrum Academy"]
[null,"Spectrum Academy - Pleasant Grove"]
[null,"Spring City School"]
[null,"Spring Creek Middle School"]
[null,"Spring Creek School"]
[null,"Spring Lake School"]
[null,"Spring Lane School"]
[null,"Springdale School"]
[null,"Springside School"]
[null,"Springville High"]
[null,"Springville Jr High"]
[null,"Sprucewood School"]
[null,"St. George Academy"]
[null,"Stansbury High"]
[null,"Stansbury Park School"]
[null,"Stansbury School"]
[null,"Star Transition"]
[null,"Sterling School"]
[null,"Stewart School"]
[null,"Success Academy"]
[null,"Success DSU"]
[null,"Summit Academy"]
[null,"Summit Academy - Bluffdale"]
[null,"Summit Academy - Independence"]
[null,"Summit Academy High School"]
[null,"Summit High"]
[null,"Summit School"]
[null,"Sunburst School"]
[null,"Suncrest School"]
[null,"Sunrise Ridge Intermediate"]
[null,"Sunrise School"]
[null,"Sunrise School"]
[null,"Sunset Jr High"]
[null,"Sunset Ridge Middle"]
[null,"Sunset School"]
[null,"Sunset School"]
[null,"Sunset View School"]
[null,"Syracuse Arts Academy"]
[null,"Syracuse Arts Academy - North"]
[null,"Syracuse High"]
[null,"Syracuse Jr High"]
[null,"Syracuse School"]
[null,"T.H. Bell Jr High"]
[null,"Tabiona High"]
[null,"Tabiona School"]
[null,"Taylor Canyon School"]
[null,"Taylor School"]
[null,"Taylor School"]
[null,"Taylorsville High"]
[null,"Taylorsville School"]
[null,"Terra Academy"]
[null,"Terra Linda School"]
[null,"The Center for Creativity Innovation and Discovery"]
[null,"Thomas Edison"]
[null,"Thomas Edison - South"]
[null,"Thomas Jefferson Jr High"]
[null,"Thomas O. Smith School"]
[null,"Thomas W. Bacchus School"]
[null,"Three Falls School"]
[null,"Three Mile Creek School"]
[null,"Three Peaks School"]
[null,"Three Points Academy"]
[null,"Thunder Ridge School"]
[null,"Timberline Middle"]
[null,"Timpanogos Academy"]
[null,"Timpanogos High"]
[null,"Timpanogos Middle School"]
[null,"Timpanogos School"]
[null,"Timpview High"]
[null,"Tintic High"]
[null,"Tolman School"]
[null,"Tonaquint Intermediate"]
[null,"Tooele Community Learning Center"]
[null,"Tooele High"]
[null,"Tooele Jr High"]
[null,"Trailside School"]
[null,"Traverse Mountain School"]
[null,"Treasure Mtn. Junior High School"]
[null,"Treeside Charter School"]
[null,"Tse'Bii'Nidzisgai School"]
[null,"Tuacahn High School for the Performing Arts"]
[null,"Twin Peaks School"]
[null,"Two Rivers High"]
[null,"Uintah High"]
[null,"Uintah Middle School"]
[null,"Uintah Online School"]
[null,"Uintah River High"]
[null,"Uintah School"]
[null,"Uintah School"]
[null,"Union High"]
[null,"Union Middle"]
[null,"Upland Terrace School"]
[null,"USD Online"]
[null,"Utah Career Path High School"]
[null,"Utah Connections Academy"]
[null,"Utah County Academy of Science"]
[null,"Utah International Charter School"]
[null,"Utah Military Academy"]
[null,"Utah Military Academy - Camp Williams"]
[null,"Utah Online 7-12"]
[null,"Utah Online K8"]
[null,"Utah Virtual Academy"]
[null,"Vae View School"]
[null,"Valley Academy"]
[null,"Valley Crest School"]
[null,"Valley High"]
[null,"Valley High School"]
[null,"Valley Jr High"]
[null,"Valley School"]
[null,"Valley School"]
[null,"Valley View Middle"]
[null,"Valley View School"]
[null,"Valley View School"]
[null,"Valley View School"]
[null,"Vanguard Academy"]
[null,"Venture Academy"]
[null,"Vernal Middle"]
[null,"Vernon School"]
[null,"Viewmont High"]
[null,"Viewmont School"]
[null,"Vineyard School"]
[null,"Vista Heights Middle"]
[null,"Vista School"]
[null,"Vista School"]
[null,"Voyage Academy"]
[null,"Wahlquist Jr High"]
[null,"Walden School of Liberal Arts"]
[null,"Wallace Stegner Academy"]
[null,"Wasatch High"]
[null,"Wasatch Jr High"]
[null,"Wasatch Learning Academy"]
[null,"Wasatch Peak Academy"]
[null,"Wasatch School"]
[null,"Wasatch School"]
[null,"Wasatch School"]
[null,"Wasatch School"]
[null,"Wasatch Waldorf Charter School"]
[null,"Washington Fields Intermediate"]
[null,"Washington School"]
[null,"Washington School"]
[null,"Washington Terrace School"]
[null,"Water Canyon High"]
[null,"Water Canyon School"]
[null,"Wayne High"]
[null,"Wayne Middle"]
[null,"Weber High"]
[null,"Weber Innovation High School"]
[null,"Weber Online K-6"]
[null,"Weilenmann School of Discovery"]
[null,"Welby School"]
[null,"Wellington School"]
[null,"Wellsville School"]
[null,"Wendover High"]
[null,"West Bountiful School"]
[null,"West Clinton School"]
[null,"West Desert High School"]
[null,"West Desert High School"]
[null,"West Haven School"]
[null,"West High"]
[null,"West Hills Middle"]
[null,"West Jordan High"]
[null,"West Jordan Middle"]
[null,"West Jordan School"]
[null,"West Kearns School"]
[null,"West Lake Jr High"]
[null,"West Point Jr High"]
[null,"West Point School"]
[null,"West School"]
[null,"West Valley School"]
[null,"West Weber School"]
[null,"Westbrook School"]
[null,"Western Hills School"]
[null,"Westfield School"]
[null,"Westlake High"]
[null,"Westland School"]
[null,"Westmore School"]
[null,"Westridge School"]
[null,"Westside School"]
[null,"Westvale School"]
[null,"White Pine School"]
[null,"Whitehorse High"]
[null,"Whitesides School"]
[null,"Whittier School"]
[null,"Whittier School"]
[null,"Willard School"]
[null,"William Penn School"]
[null,"Willow Canyon School"]
[null,"Willow School"]
[null,"Willow Springs School"]
[null,"Willowcreek Middle"]
[null,"Wilson School"]
[null,"Wilson School"]
[null,"Windridge School"]
[null,"Windsor School"]
[null,"Winter Sports School"]
[null,"Woodrow Wilson School"]
[null,"Woodruff School"]
[null,"Woods Cross High"]
[null,"Woods Cross School"]
[null,"Woodstock School"]
[null,"Youth Educational Support School"]